bitfinex/quotes_BTCUSD_20240617
["timestamp","ask_amount","ask_price","bid_price","bid_amount"]
[1718594167310,0.00285,66415.0,66414.0,1.6650919]
[1718594168799,0.00285,66415.0,66414.0,1.72756842]
[1718594170971,0.00285,66415.0,66414.0,1.60711242]
[1718594171172,0.00285,66415.0,66414.0,1.72756842]
[1718594174176,0.00285,66415.0,66414.0,1.96848142]
[1718594174618,0.00285,66415.0,66414.0,1.72756842]
[1718594175454,0.00285,66415.0,66414.0,1.73756842]
[1718594175605,0.00285,66415.0,66414.0,2.21939442]
[1718594176279,0.00285,66415.0,66414.0,1.97848142]
[1718594178109,0.00285,66415.0,66414.0,1.72756842]
[1718594179292,0.00285,66415.0,66414.0,1.60711242]
[1718594180270,0.00285,66415.0,66414.0,1.60710745]
[1718594180481,0.00285,66415.0,66414.0,1.55670745]
[1718594180696,0.00285,66415.0,66414.0,1.60710745]
[1718594184427,0.00285,66415.0,66414.0,1.97847645]
[1718594184833,0.00285,66415.0,66414.0,1.73756345]
[1718594185798,0.00285,66415.0,66414.0,1.72756079]
[1718594187377,0.00285,66415.0,66414.0,1.66508427]
[1718594187580,0.00285,66415.0,66414.0,1.72756065]
[1718594188156,0.00285,66415.0,66414.0,1.77250062]
[1718594188362,0.00285,66415.0,66414.0,2.02341362]
[1718594188678,0.00285,66415.0,66414.0,2.01341362]
[1718594190068,0.00285,66415.0,66414.0,1.83395005]
[1718594190257,0.00285,66415.0,66414.0,1.65551302]
[1718594191308,0.00285,66415.0,66414.0,1.65551326]
[1718594192001,0.00285,66415.0,66414.0,1.89642626]
[1718594194012,0.00285,66415.0,66414.0,2.14733926]
[1718594194195,0.00285,66415.0,66414.0,2.31189704]
[1718594194401,0.00285,66415.0,66414.0,2.08098404]
[1718594195285,0.00285,66415.0,66414.0,2.07098404]
[1718594195500,0.00285,66415.0,66414.0,2.08098404]
[1718594195712,0.00285,66415.0,66414.0,2.01357408]
[1718594195920,0.00285,66415.0,66414.0,2.10345403]
[1718594196147,0.00285,66415.0,66414.0,2.00357408]
[1718594196349,0.00285,66415.0,66414.0,2.07097506]
[1718594196522,0.00285,66415.0,66414.0,2.00357408]
[1718594196731,0.00285,66415.0,66414.0,2.25448708]
[1718594196938,0.00285,66415.0,66414.0,2.10239929]
[1718594197154,0.00285,66415.0,66414.0,2.18226414]
[1718594197359,0.00285,66415.0,66414.0,2.10239929]
[1718594197972,0.00285,66415.0,66414.0,2.09239929]
[1718594198175,0.00285,66415.0,66414.0,2.15980676]
[1718594198441,0.00285,66415.0,66414.0,1.91889376]
[1718594198646,0.00285,66415.0,66414.0,1.89642549]
[1718594198851,0.00285,66415.0,66414.0,1.91889376]
[1718594199052,0.00285,66415.0,66414.0,1.65738629]
[1718594199231,0.00285,66415.0,66414.0,1.70778629]
[1718594199411,0.00285,66415.0,66414.0,1.77519376]
[1718594199622,0.00285,66415.0,66414.0,1.70778629]
[1718594199854,0.00285,66415.0,66414.0,1.70778602]
[1718594200483,0.00285,66415.0,66414.0,1.77519521]
[1718594203135,0.00285,66415.0,66414.0,1.36342621]
[1718594203354,0.00285,66415.0,66414.0,1.53428221]
[1718594203529,0.00285,66415.0,66414.0,1.46687249]
[1718594204351,0.00285,66415.0,66414.0,1.53428221]
[1718594204984,0.00285,66415.0,66414.0,1.29601897]
[1718594205189,0.00285,66415.0,66414.0,1.58733197]
[1718594205390,0.00285,66415.0,66414.0,1.70778797]
[1718594205529,0.00285,66415.0,66414.0,1.77519769]
[1718594205877,0.00285,66415.0,66414.0,1.92728548]
[1718594206401,0.00285,66415.0,66414.0,1.77519769]
[1718594206768,0.00285,66415.0,66414.0,1.77519771]
[1718594207606,0.00285,66415.0,66414.0,1.53428471]
[1718594209274,0.00285,66415.0,66414.0,1.53432703]
[1718594209472,0.00285,66415.0,66414.0,1.46687499]
[1718594209675,0.00285,66415.0,66414.0,1.46687473]
[1718594210244,0.00285,66415.0,66414.0,1.61896252]
[1718594210795,0.00285,66415.0,66414.0,1.46687473]
[1718594211151,0.00285,66415.0,66414.0,1.47687473]
[1718594211500,0.00285,66415.0,66414.0,1.46687473]
[1718594215305,0.00285,66415.0,66414.0,1.46687337]
[1718594217284,0.00285,66415.0,66414.0,1.34641737]
[1718594217432,0.00285,66415.0,66414.0,1.46687337]
[1718594217632,0.0054334,66415.0,66414.0,1.46687337]
[1718594217836,0.00285,66415.0,66414.0,1.46687337]
[1718594218049,0.0054334,66415.0,66414.0,1.46687337]
[1718594218442,0.00561687,66415.0,66414.0,1.34641737]
[1718594218639,0.36697987,66415.0,66414.0,1.29601737]
[1718594218841,0.44397987,66415.0,66414.0,1.36347178]
[1718594219046,0.26357087,66415.0,66414.0,1.36347178]
[1718594219242,0.14311687,66415.0,66414.0,1.29601737]
[1718594219449,0.1429334,66415.0,66414.0,1.36347178]
[1718594220191,0.0824334,66415.0,66414.0,1.36347178]
[1718594220348,0.0054334,66415.0,66414.0,1.36347178]
[1718594220564,0.00285,66415.0,66414.0,1.50307178]
[1718594220756,0.00285,66415.0,66414.0,1.5030729]
[1718594220757,0.00543151,66415.0,66414.0,1.5030729]
[1718594220956,0.00543151,66415.0,66414.0,1.44561849]
[1718594221158,0.00285,66415.0,66414.0,1.44561849]
[1718594222624,0.00285,66415.0,66414.0,1.56607449]
[1718594222840,0.00285,66415.0,66414.0,1.71816228]
[1718594223043,0.00543175,66415.0,66414.0,1.70816228]
[1718594223435,0.00285,66415.0,66414.0,1.70816228]
[1718594224633,0.00543175,66415.0,66414.0,1.70816228]
[1718594224838,0.00285,66415.0,66414.0,1.70816228]
[1718594225706,0.00285,66415.0,66414.0,1.63286228]
[1718594225906,0.20288608,66415.0,66414.0,1.36348626]
[1718594226079,0.44379508,66415.0,66414.0,1.36348626]
[1718594226283,0.26356955,66415.0,66414.0,1.36348626]
[1718594226603,0.26356955,66415.0,66414.0,1.13893108]
[1718594226604,0.74538755,66415.0,66414.0,1.13893108]
[1718594226807,0.98629655,66415.0,66414.0,1.07645454]
[1718594227212,0.74538755,66415.0,66414.0,1.07645454]
[1718594227373,0.50447855,66415.0,66414.0,1.07645454]
[1718594227782,0.74538755,66415.0,66414.0,1.07645454]
[1718594228858,0.98629655,66415.0,66414.0,1.07645454]
[1718594229070,0.74538755,66415.0,66414.0,1.07645454]
[1718594229282,0.74538755,66415.0,66414.0,0.95150146]
[1718594230789,0.75538755,66415.0,66414.0,0.95150146]
[1718594231050,0.74538755,66415.0,66414.0,0.95150146]
[1718594231276,0.75538755,66415.0,66414.0,0.95150146]
[1718594231494,0.98629655,66415.0,66414.0,0.95150146]
[1718594231710,0.74538755,66415.0,66414.0,0.95150146]
[1718594232175,0.98629655,66415.0,66414.0,0.95150146]
[1718594232613,0.74538755,66415.0,66414.0,0.95150146]
[1718594232832,0.75538755,66415.0,66414.0,0.95150146]
[1718594233056,0.99629655,66415.0,66414.0,0.95150146]
[1718594233535,0.98629655,66415.0,66414.0,0.95150146]
[1718594233735,0.99629655,66415.0,66414.0,0.95150146]
[1718594234298,0.98629655,66415.0,66414.0,0.95150146]
[1718594234520,0.74538755,66415.0,66414.0,0.95150146]
[1718594234932,0.98629655,66415.0,66414.0,0.95150146]
[1718594237943,0.99629655,66415.0,66414.0,0.95150146]
[1718594238344,1.09601121,66415.0,66414.0,0.95150146]
[1718594238603,1.14641121,66415.0,66414.0,0.95150146]
[1718594238772,1.16861648,66415.0,66414.0,0.95150146]
[1718594238971,1.11821648,66415.0,66414.0,0.95150146]
[1718594239289,1.16761648,66415.0,66414.0,0.94450146]
[1718594239733,1.17461648,66415.0,66414.0,0.94550146]
[1718594239935,1.17361648,66415.0,66414.0,0.93850146]
[1718594240101,1.13021648,66415.0,66414.0,0.93950146]
[1718594240284,1.08090182,66415.0,66414.0,0.93950146]
[1718594240713,1.07390182,66415.0,66414.0,0.93850146]
[1718594241133,1.08190182,66415.0,66414.0,0.93950146]
[1718594241982,1.02950182,66415.0,66414.0,0.94050146]
[1718594242196,1.07990182,66415.0,66414.0,0.94050146]
[1718594242418,1.06769655,66415.0,66414.0,0.94050146]
[1718594242645,1.05769655,66415.0,66414.0,0.94050146]
[1718594242986,1.06769655,66415.0,66414.0,0.94050146]
[1718594244978,1.05769655,66415.0,66414.0,0.94050146]
[1718594245616,1.06769655,66415.0,66414.0,0.94050146]
[1718594250610,1.40860555,66415.0,66414.0,0.94050146]
[1718594250953,1.58275328,66415.0,66414.0,0.94050146]
[1718594251570,1.67775328,66415.0,66414.0,0.94050146]
[1718594252444,1.67772327,66415.0,66414.0,0.94050146]
[1718594257534,2.07072006,66415.0,66414.0,0.94050146]
[1718594258008,3.09875702,66415.0,66414.0,0.94050146]
[1718594258636,3.13375702,66415.0,66414.0,0.93850146]
[1718594259076,3.12418606,66415.0,66414.0,0.93950146]
[1718594259296,3.12418606,66415.0,66414.0,0.93850146]
[1718594259530,3.12418606,66415.0,66414.0,0.93950146]
[1718594259758,3.13018606,66415.0,66414.0,0.93850146]
[1718594260243,3.14418606,66415.0,66414.0,0.93850146]
[1718594260695,3.13018606,66415.0,66414.0,0.93850146]
[1718594260977,3.14418606,66415.0,66414.0,0.93850146]
[1718594263603,3.14409807,66415.0,66414.0,0.93850146]
[1718594263802,3.09369807,66415.0,66414.0,0.93850146]
[1718594264046,3.14409807,66415.0,66414.0,0.93850146]
[1718594268027,3.16214041,66415.0,66414.0,0.93850146]
[1718594268557,3.20717581,66415.0,66414.0,0.93850146]
[1718594270687,3.16214041,66415.0,66414.0,0.93850146]
[1718594271882,3.22969351,66415.0,66414.0,0.93850146]
[1718594273827,3.21214041,66415.0,66414.0,0.93850146]
[1718594274144,3.21214041,66415.0,66405.0,0.04952881]
[1718594274145,0.66119647,66406.0,66405.0,2.7e-07]
[1718594274362,1.72463875,66406.0,66405.0,2.7e-07]
[1718594274570,1.72463875,66406.0,66397.0,0.000935]
[1718594274571,0.94858147,66398.0,66397.0,0.000935]
[1718594274779,1.36189441,66398.0,66397.0,0.000935]
[1718594274989,1.44527613,66398.0,66397.0,0.000935]
[1718594275208,1.90203492,66398.0,66397.0,0.000935]
[1718594275432,1.95956537,66398.0,66397.0,0.000935]
[1718594276380,2.74555537,66398.0,66397.0,1e-06]
[1718594276784,2.75955537,66398.0,66397.0,1e-06]
[1718594276931,2.80955537,66398.0,66397.0,1e-06]
[1718594277384,2.79555537,66398.0,66397.0,1e-06]
[1718594278448,2.78155537,66398.0,66397.0,1e-06]
[1718594278680,2.78155537,66398.0,66389.0,1e-06]
[1718594278681,0.10518347,66390.0,66389.0,1e-06]
[1718594278890,0.10518347,66390.0,66386.0,0.000935]
[1718594278891,0.22568847,66387.0,66386.0,1e-06]
[1718594279096,1.1731512,66387.0,66386.0,1e-06]
[1718594279285,1.51661272,66387.0,66386.0,1e-06]
[1718594279491,1.58773237,66387.0,66386.0,1e-06]
[1718594279845,1.72723237,66387.0,66386.0,1e-06]
[1718594280636,1.74123237,66387.0,66386.0,1e-06]
[1718594281932,3.96253737,66387.0,66386.0,1e-06]
[1718594282133,4.00754244,66387.0,66386.0,1e-06]
[1718594282402,4.0301076,66387.0,66386.0,1e-06]
[1718594282755,3.91213737,66387.0,66386.0,1e-06]
[1718594282965,3.96253737,66387.0,66386.0,1e-06]
[1718594283367,3.97973516,66387.0,66386.0,1e-06]
[1718594283940,3.99373516,66387.0,66386.0,1e-06]
[1718594284140,3.94874802,66387.0,66386.0,1e-06]
[1718594284967,3.94873867,66387.0,66386.0,1e-06]
[1718594285164,4.18974967,66387.0,66386.0,1e-06]
[1718594285387,4.20374967,66387.0,66386.0,1e-06]
[1718594286399,3.96273867,66387.0,66386.0,1e-06]
[1718594286763,2.25504467,66387.0,66386.0,1e-06]
[1718594286967,5.09263167,66387.0,66386.0,1e-06]
[1718594287394,5.30556167,66387.0,66386.0,1e-06]
[1718594287605,5.19951067,66387.0,66386.0,1e-06]
[1718594287985,5.21735105,66387.0,66386.0,1e-06]
[1718594288992,5.06851105,66387.0,66386.0,1e-06]
[1718594290318,5.30952205,66387.0,66386.0,1e-06]
[1718594290555,5.30955285,66387.0,66386.0,1e-06]
[1718594292017,0.85394947,66369.0,66368.0,0.054961]
[1718594292237,1.00434947,66369.0,66368.0,0.054961]
[1718594292468,1.0067703,66369.0,66368.0,0.054961]
[1718594292893,0.9967703,66369.0,66368.0,0.131161]
[1718594293311,1.2428463,66369.0,66368.0,0.131161]
[1718594293520,1.2528463,66369.0,66368.0,0.131161]
[1718594293729,1.2578463,66369.0,66368.0,0.131161]
[1718594293945,1.2478463,66369.0,66368.0,0.131161]
[1718594294365,1.2578463,66369.0,66368.0,0.131161]
[1718594295172,1.39123532,66369.0,66368.0,0.131161]
[1718594295602,1.38123532,66369.0,66368.0,0.131161]
[1718594296021,1.14015932,66369.0,66368.0,0.131161]
[1718594296674,1.0067703,66369.0,66368.0,0.131161]
[1718594297722,1.0167703,66369.0,66368.0,0.131161]
[1718594297938,1.2578463,66369.0,66368.0,0.131161]
[1718594300555,1.0067703,66369.0,66368.0,0.131161]
[1718594302134,1.0067703,66369.0,66368.0,0.132096]
[1718594303437,1.0067703,66369.0,66368.0,0.137096]
[1718594303657,0.01242083,66369.0,66368.0,0.137096]
[1718594303871,0.01,66369.0,66368.0,0.137096]
[1718594304087,0.61287347,66369.0,66368.0,0.132096]
[1718594304300,0.85636198,66369.0,66368.0,0.132096]
[1718594306047,0.37402651,66369.0,66368.0,0.137096]
[1718594306488,0.85636198,66369.0,66368.0,0.137096]
[1718594308235,0.85636198,66369.0,66368.0,0.132096]
[1718594309734,0.85636198,66369.0,66368.0,0.137096]
[1718594309963,0.01241251,66369.0,66368.0,0.1508056]
[1718594310300,0.130538,66369.0,66368.0,0.1508056]
[1718594310512,0.13313838,66369.0,66368.0,0.1508056]
[1718594310773,0.37421438,66369.0,66368.0,0.137096]
[1718594311217,0.61529038,66369.0,66368.0,0.137096]
[1718594311393,0.37421438,66369.0,66368.0,0.137096]
[1718594312999,0.98281027,66369.0,66368.0,0.000935]
[1718594313225,1.23833423,66369.0,66368.0,0.000935]
[1718594313583,1.0545473,66369.0,66368.0,0.000935]
[1718594313785,0.03455394,66369.0,66368.0,0.005935]
[1718594313993,0.01241691,66369.0,66368.0,0.48236279]
[1718594314244,0.00085,66387.0,66381.0,0.1484]
[1718594314449,0.00085,66387.0,66385.0,0.005]
[1718594314450,0.00103347,66387.0,66385.0,0.005]
[1718594314670,0.00103347,66387.0,66386.0,0.1397]
[1718594314865,0.00018347,66381.0,66378.0,0.1447]
[1718594315096,0.00018347,66381.0,66373.0,0.005]
[1718594315097,0.07604389,66379.0,66373.0,0.005]
[1718594315299,0.120532,66372.0,66371.0,0.1447]
[1718594315503,0.361597,66372.0,66371.0,0.26974324]
[1718594315866,0.361597,66372.0,66371.0,0.1447]
[1718594315867,0.00218832,66372.0,66371.0,0.1447]
[1718594316074,0.241049,66377.0,66376.0,0.1433]
[1718594316279,0.29064353,66385.0,66381.0,0.1433]
[1718594316280,0.00018347,66382.0,66381.0,0.1433]
[1718594316583,0.36172847,66382.0,66381.0,0.1433]
[1718594316990,0.60275947,66382.0,66381.0,0.1383]
[1718594318259,0.60275947,66382.0,66381.0,0.1433]
[1718594318825,0.60275947,66382.0,66381.0,0.1443]
[1718594318826,0.61675947,66382.0,66381.0,0.1443]
[1718594319472,0.61675947,66382.0,66381.0,0.1393]
[1718594320267,0.71262252,66382.0,66381.0,0.001]
[1718594320488,1.09405152,66382.0,66381.0,0.001]
[1718594320723,1.2163685,66382.0,66381.0,0.001]
[1718594321576,1.45958948,66382.0,66381.0,0.001]
[1718594322226,1.21855848,66382.0,66381.0,0.001]
[1718594322430,1.37064427,66382.0,66381.0,0.001]
[1718594322812,1.61167327,66382.0,66381.0,0.001]
[1718594323028,1.58935629,66382.0,66381.0,0.001]
[1718594323505,1.61165269,66382.0,66381.0,0.001]
[1718594323727,1.61165266,66382.0,66381.0,0.001]
[1718594324144,1.37062366,66382.0,66381.0,0.001]
[1718594324559,1.61165266,66382.0,66381.0,0.001]
[1718594324771,1.37062366,66382.0,66381.0,0.001]
[1718594325427,1.61165266,66382.0,66381.0,0.001]
[1718594327026,1.74760386,66382.0,66381.0,0.001]
[1718594327229,3.05486886,66382.0,66381.0,0.001]
[1718594327433,2.89764952,66382.0,66381.0,0.001]
[1718594328677,3.18167852,66382.0,66381.0,0.001]
[1718594328874,0.84394947,66369.0,66368.0,0.000935]
[1718594329085,0.8461051,66369.0,66368.0,0.000935]
[1718594329287,0.8561051,66369.0,66368.0,0.000935]
[1718594329697,0.8461051,66369.0,66368.0,0.000935]
[1718594330152,0.8501051,66369.0,66368.0,0.000935]
[1718594330405,0.89689215,66369.0,66368.0,0.000935]
[1718594330584,0.90689215,66369.0,66368.0,0.000935]
[1718594330791,0.8541051,66369.0,66368.0,0.000935]
[1718594334969,1.1051811,66369.0,66368.0,0.000935]
[1718594335115,1.2051811,66369.0,66368.0,0.000935]
[1718594335538,1.22725556,66369.0,66368.0,0.000935]
[1718594336123,1.21725556,66369.0,66368.0,0.000935]
[1718594336317,1.35590566,66369.0,66368.0,0.000935]
[1718594336525,1.35588199,66369.0,66368.0,0.000935]
[1718594337877,1.35589497,66369.0,66368.0,0.000935]
[1718594338745,1.3338312,66369.0,66368.0,0.000935]
[1718594338945,1.35589345,66369.0,66368.0,0.000935]
[1718594339585,1.40629345,66369.0,66368.0,0.000935]
[1718594340113,1.55559345,66369.0,66368.0,0.000935]
[1718594340532,1.70768124,66369.0,66368.0,0.000935]
[1718594341415,1.65728124,66369.0,66368.0,0.000935]
[1718594341629,1.70768124,66369.0,66368.0,0.000935]
[1718594343345,1.36933114,66369.0,66368.0,0.000935]
[1718594343548,1.35726889,66369.0,66368.0,0.000935]
[1718594345237,1.37931099,66369.0,66368.0,0.000935]
[1718594347440,1.35726889,66369.0,66368.0,0.000935]
[1718594347651,1.61749977,66369.0,66368.0,0.000935]
[1718594347851,1.80917883,66369.0,66368.0,0.000935]
[1718594348616,1.80517883,66369.0,66368.0,0.000935]
[1718594348827,1.80117883,66369.0,66368.0,0.000935]
[1718594349037,1.80517883,66369.0,66368.0,0.000935]
[1718594349238,1.81917883,66369.0,66368.0,0.000935]
[1718594349607,1.70617883,66369.0,66368.0,0.000935]
[1718594350200,1.72017883,66369.0,66368.0,0.000935]
[1718594350399,1.81517883,66369.0,66368.0,0.000935]
[1718594350633,1.82917883,66369.0,66368.0,0.000935]
[1718594352849,1.73417883,66369.0,66368.0,0.000935]
[1718594353197,1.82917883,66369.0,66368.0,0.000935]
[1718594354653,2.93404083,66369.0,66368.0,0.000935]
[1718594355930,2.83904083,66369.0,66368.0,0.000935]
[1718594356532,2.93404083,66369.0,66368.0,0.000935]
[1718594356708,2.83904083,66369.0,66368.0,0.000935]
[1718594357112,2.79565183,66369.0,66368.0,0.000935]
[1718594357316,2.69352583,66369.0,66368.0,0.000935]
[1718594359326,1.58209104,66369.0,66368.0,0.000935]
[1718594359523,1.44967214,66369.0,66368.0,0.000935]
[1718594359874,1.48852367,66369.0,66368.0,0.000935]
[1718594360631,1.18704767,66369.0,66368.0,0.000935]
[1718594360868,1.03495988,66369.0,66368.0,0.143335]
[1718594361079,1.03590146,66369.0,66368.0,0.143335]
[1718594361482,0.99616491,66369.0,66368.0,0.148335]
[1718594361692,0.99616491,66369.0,66368.0,0.143335]
[1718594362228,0.99624188,66369.0,66368.0,0.143335]
[1718594362372,0.96824188,66369.0,66368.0,0.143335]
[1718594362777,0.98924188,66369.0,66368.0,0.143335]
[1718594365256,1.15217967,66369.0,66368.0,0.000935]
[1718594365466,1.77433661,66369.0,66368.0,0.000935]
[1718594366518,1.77433661,66369.0,66354.0,0.005]
[1718594366519,0.01,66358.0,66351.0,0.009405]
[1718594366738,1.02521036,66352.0,66351.0,0.009405]
[1718594366935,1.49272852,66352.0,66351.0,0.009405]
[1718594367212,1.59432477,66352.0,66351.0,0.009405]
[1718594367415,1.73922864,66352.0,66351.0,0.009405]
[1718594367625,1.72912159,66352.0,66351.0,0.009405]
[1718594367796,1.34664172,66352.0,66351.0,0.011405]
[1718594368012,1.25638359,66352.0,66351.0,0.011405]
[1718594368153,1.30678359,66352.0,66351.0,0.006405]
[1718594369150,1.29678359,66352.0,66351.0,0.006405]
[1718594369353,1.30678359,66352.0,66351.0,0.006405]
[1718594369547,1.25638359,66352.0,66351.0,0.006405]
[1718594369762,1.25638359,66352.0,66351.0,0.004405]
[1718594370185,1.27038359,66352.0,66351.0,0.004405]
[1718594370399,1.27138359,66352.0,66351.0,0.004405]
[1718594370611,1.25638359,66352.0,66351.0,0.004405]
[1718594370855,1.27038359,66352.0,66351.0,0.004405]
[1718594371100,1.27438359,66352.0,66351.0,0.004405]
[1718594371312,1.26038359,66352.0,66351.0,0.004405]
[1718594371515,1.28438359,66352.0,66351.0,0.004405]
[1718594371946,1.27038359,66352.0,66351.0,0.004405]
[1718594372171,1.28438359,66352.0,66351.0,0.004405]
[1718594372397,1.27038359,66352.0,66351.0,0.004405]
[1718594372615,1.29420225,66352.0,66351.0,0.004405]
[1718594373243,1.28020225,66352.0,66351.0,0.004405]
[1718594373494,1.53534025,66352.0,66351.0,0.004405]
[1718594373706,1.28020225,66352.0,66351.0,0.004405]
[1718594374125,1.26020225,66352.0,66351.0,0.004405]
[1718594374334,1.21020225,66352.0,66351.0,0.004405]
[1718594374536,1.29420225,66352.0,66351.0,0.004405]
[1718594374962,1.28020225,66352.0,66351.0,0.004405]
[1718594375172,1.29420225,66352.0,66351.0,0.004405]
[1718594375644,1.28020225,66352.0,66351.0,0.004405]
[1718594375865,1.19620225,66352.0,66351.0,0.004405]
[1718594376114,0.95506425,66352.0,66351.0,0.004405]
[1718594376338,0.71880888,66352.0,66351.0,0.147605]
[1718594376748,0.70480888,66352.0,66351.0,0.147605]
[1718594376948,0.71880888,66352.0,66351.0,0.147605]
[1718594377631,0.48966875,66352.0,66351.0,0.152605]
[1718594377802,0.40366875,66352.0,66351.0,0.152605]
[1718594378484,0.40366875,66352.0,66351.0,0.147605]
[1718594378707,0.64480675,66352.0,66351.0,0.147605]
[1718594378918,0.61880675,66352.0,66351.0,0.152605]
[1718594379123,0.60480675,66352.0,66351.0,0.147605]
[1718594379324,0.61580675,66352.0,66351.0,0.147605]
[1718594379494,0.85694475,66352.0,66351.0,0.147605]
[1718594379910,0.86953527,66352.0,66351.0,0.147605]
[1718594380126,0.95722975,66352.0,66351.0,0.004405]
[1718594380331,0.96822975,66352.0,66351.0,0.004405]
[1718594380766,0.95722975,66352.0,66351.0,0.004405]
[1718594380988,0.96922975,66352.0,66351.0,0.004405]
[1718594381599,1.23036775,66352.0,66351.0,0.004405]
[1718594382711,1.24136775,66352.0,66351.0,0.004405]
[1718594383131,1.23036775,66352.0,66351.0,0.004405]
[1718594383556,0.96922975,66352.0,66351.0,0.004405]
[1718594383696,0.98022975,66352.0,66351.0,0.004405]
[1718594383900,0.96822975,66352.0,66351.0,0.004405]
[1718594384102,0.95722975,66352.0,66351.0,0.004405]
[1718594384304,0.96922975,66352.0,66351.0,0.004405]
[1718594384512,0.95722975,66352.0,66351.0,0.004405]
[1718594384959,0.96922975,66352.0,66351.0,0.004405]
[1718594385413,1.38245554,66352.0,66351.0,0.004405]
[1718594385767,1.39345554,66352.0,66351.0,0.004405]
[1718594386159,1.38245554,66352.0,66351.0,0.004405]
[1718594386583,1.39345554,66352.0,66351.0,0.004405]
[1718594387145,1.38245554,66352.0,66351.0,0.004405]
[1718594387352,1.49645554,66352.0,66351.0,0.004405]
[1718594387556,1.48445554,66352.0,66351.0,0.004405]
[1718594387759,1.57945554,66352.0,66351.0,0.004405]
[1718594387989,1.88279354,66352.0,66351.0,0.004405]
[1718594388377,1.65565554,66352.0,66351.0,0.004405]
[1718594388590,1.64165554,66352.0,66351.0,0.004405]
[1718594388790,2.16832954,66352.0,66351.0,0.004405]
[1718594389213,2.07332954,66352.0,66351.0,0.004405]
[1718594389415,2.18232954,66352.0,66351.0,0.004405]
[1718594389624,2.08732954,66352.0,66351.0,0.004405]
[1718594389814,1.97625754,66352.0,66351.0,0.004405]
[1718594390154,2.07125754,66352.0,66351.0,0.004405]
[1718594390563,2.04768154,66352.0,66351.0,0.004405]
[1718594390991,2.07878154,66352.0,66351.0,0.004405]
[1718594391198,2.15978154,66352.0,66351.0,0.004405]
[1718594391441,2.40091954,66352.0,66351.0,0.004405]
[1718594391657,2.00889354,66352.0,66351.0,0.004405]
[1718594391819,3.24302754,66352.0,66351.0,0.004405]
[1718594392081,3.22902754,66352.0,66351.0,0.004405]
[1718594392281,2.01450454,66352.0,66351.0,0.004405]
[1718594392492,1.91357454,66352.0,66351.0,0.004405]
[1718594392698,1.92757454,66352.0,66351.0,0.004405]
[1718594393096,1.88692554,66352.0,66351.0,0.004405]
[1718594393303,1.90092554,66352.0,66351.0,0.004405]
[1718594393693,1.68675554,66352.0,66351.0,0.004405]
[1718594393886,1.67275554,66352.0,66351.0,0.004405]
[1718594394599,1.65875554,66352.0,66351.0,0.004405]
[1718594394812,1.67275554,66352.0,66351.0,0.004405]
[1718594395022,1.54665554,66352.0,66351.0,0.004405]
[1718594395254,1.53265554,66352.0,66351.0,0.004405]
[1718594395531,1.56065554,66352.0,66351.0,0.004405]
[1718594395937,1.54665554,66352.0,66351.0,0.004405]
[1718594396380,1.56065554,66352.0,66351.0,0.004405]
[1718594396772,1.64165554,66352.0,66351.0,0.004405]
[1718594397354,1.56358161,66352.0,66351.0,0.004405]
[1718594397560,1.45458161,66352.0,66351.0,0.004405]
[1718594398202,1.46858161,66352.0,66351.0,0.004405]
[1718594398720,1.45543161,66352.0,66351.0,0.004405]
[1718594398971,1.46943161,66352.0,66351.0,0.004405]
[1718594399546,1.45543161,66352.0,66351.0,0.004405]
[1718594399753,1.46943161,66352.0,66351.0,0.004405]
[1718594400372,1.45543161,66352.0,66351.0,0.004405]
[1718594400770,1.55043161,66352.0,66351.0,0.004405]
[1718594400970,1.56443161,66352.0,66351.0,0.004405]
[1718594401341,1.46943161,66352.0,66351.0,0.004405]
[1718594401541,1.51983161,66352.0,66351.0,0.004405]
[1718594401714,1.53383161,66352.0,66351.0,0.004405]
[1718594401916,1.50583161,66352.0,66351.0,0.004405]
[1718594402128,1.49183161,66352.0,66351.0,0.004405]
[1718594402283,1.50583161,66352.0,66351.0,0.004405]
[1718594402490,1.51983161,66352.0,66351.0,0.004405]
[1718594402928,1.50583161,66352.0,66351.0,0.004405]
[1718594403508,1.51983161,66352.0,66351.0,0.004405]
[1718594405677,0.215,66348.0,66347.0,0.009394]
[1718594405889,0.215,66348.0,66345.0,0.009394]
[1718594405890,0.478579,66346.0,66345.0,0.009394]
[1718594406111,1.16344977,66346.0,66345.0,0.009394]
[1718594406323,1.73005749,66346.0,66345.0,0.009394]
[1718594406555,1.8202678,66346.0,66345.0,0.009394]
[1718594406784,3.34476539,66346.0,66345.0,0.009394]
[1718594407207,3.4349757,66346.0,66345.0,0.009394]
[1718594407607,3.5106757,66346.0,66345.0,0.009394]
[1718594407849,3.42046539,66346.0,66345.0,0.009394]
[1718594408224,3.53318695,66346.0,66345.0,0.009394]
[1718594408446,3.42108695,66346.0,66345.0,0.009394]
[1718594408609,3.43446539,66346.0,66345.0,0.009394]
[1718594409419,3.56118695,66346.0,66345.0,0.009394]
[1718594409597,2.09210139,66346.0,66345.0,0.009394]
[1718594409803,2.20482295,66346.0,66345.0,0.009394]
[1718594410007,3.86390695,66346.0,66345.0,0.009394]
[1718594410217,3.73780695,66346.0,66345.0,0.009394]
[1718594410637,3.86390695,66346.0,66345.0,0.009394]
[1718594411323,3.75118539,66346.0,66345.0,0.009394]
[1718594411664,3.8639689,66346.0,66345.0,0.009394]
[1718594412063,3.75118539,66346.0,66345.0,0.009394]
[1718594413401,3.8639611,66346.0,66345.0,0.009394]
[1718594414213,3.54324439,66346.0,66345.0,0.009394]
[1718594414429,3.63345169,66346.0,66345.0,0.009394]
[1718594416346,3.54324439,66346.0,66345.0,0.009394]
[1718594416547,3.63345169,66346.0,66345.0,0.009394]
[1718594416950,3.54324439,66346.0,66345.0,0.009394]
[1718594417183,3.80279456,66346.0,66345.0,1e-06]
[1718594417739,3.96149456,66346.0,66345.0,1e-06]
[1718594417940,1.105382,66336.0,66335.0,0.000935]
[1718594418145,1.35895028,66336.0,66335.0,0.000935]
[1718594418985,1.45395028,66336.0,66335.0,0.000935]
[1718594419201,1.70714628,66336.0,66335.0,0.000935]
[1718594419434,1.155463,66331.0,66330.0,0.009405]
[1718594419640,1.96630868,66331.0,66330.0,0.009405]
[1718594419853,1.99887422,66331.0,66330.0,0.009405]
[1718594420056,2.34960822,66331.0,66330.0,0.009405]
[1718594420273,2.22350822,66331.0,66330.0,0.009405]
[1718594420483,2.44460822,66331.0,66330.0,0.009405]
[1718594421113,2.45860822,66331.0,66330.0,0.009405]
[1718594422588,2.48221102,66331.0,66330.0,0.009405]